bitfinex/quotes_BTCUSD_20241014
["timestamp","ask_amount","ask_price","bid_price","bid_amount"]
[1728876552169,0.02971447,63403.0,63398.0,0.1741]
[1728876552404,0.02471447,63403.0,63398.0,0.331832]
[1728876552629,0.02571447,63403.0,63398.0,0.1741]
[1728876552864,0.03071447,63403.0,63398.0,0.1741]
[1728876553104,0.001,63403.0,63399.0,0.157729]
[1728876553386,0.005,63403.0,63402.0,0.16383902]
[1728876553641,0.000819,63420.0,63410.0,0.005]
[1728876553877,0.23772356,63414.0,63413.0,0.157696]
[1728876554129,0.000819,63420.0,63413.0,0.157696]
[1728876554130,0.000819,63420.0,63419.0,0.157681]
[1728876554382,0.23854256,63420.0,63419.0,0.1680648]
[1728876554624,0.000819,63420.0,63419.0,0.50270382]
[1728876554893,0.000819,63420.0,63419.0,0.82776685]
[1728876555161,0.000819,63420.0,63419.0,0.66892783]
[1728876555754,0.001819,63420.0,63419.0,0.66892783]
[1728876555972,0.000819,63420.0,63419.0,0.83276685]
[1728876556221,0.23854256,63433.0,63432.0,0.253149]
[1728876556731,0.000819,63433.0,63432.0,0.253149]
[1728876556977,0.000819,63433.0,63432.0,0.329449]
[1728876557514,0.000819,63433.0,63432.0,0.332449]
[1728876558340,0.000819,63433.0,63432.0,0.333449]
[1728876566083,0.000819,63433.0,63432.0,0.338449]
[1728876567271,0.000819,63433.0,63432.0,0.49967301]
[1728876569217,0.22880833,63439.0,63438.0,0.32147302]
[1728876569652,0.02470129,63440.0,63439.0,0.157631]
[1728876570518,0.02470129,63440.0,63434.0,0.16383902]
[1728876570519,0.007,63439.0,63434.0,0.16383902]
[1728876570730,0.007,63439.0,63438.0,0.157634]
[1728876570956,0.003,63439.0,63438.0,0.157634]
[1728876571241,0.003,63439.0,63437.0,0.157634]
[1728876571460,0.003,63439.0,63435.0,0.15764]
[1728876571669,0.02870129,63440.0,63439.0,8.997]
[1728876571884,0.02470129,63440.0,63439.0,8.997]
[1728876572095,0.02870129,63440.0,63439.0,9.154631]
[1728876572532,0.02470129,63440.0,63439.0,9.154631]
[1728876573205,0.15762,63444.0,63439.0,9.154631]
[1728876573423,0.55294456,63448.0,63439.0,8.997]
[1728876573648,0.55294456,63448.0,63440.0,0.157627]
[1728876574110,0.157618,63445.0,63440.0,0.157627]
[1728876574344,0.157613,63447.0,63442.0,0.157623]
[1728876574588,0.315209,63450.0,63444.0,0.157618]
[1728876574813,0.315209,63450.0,63446.0,0.157612]
[1728876574814,0.004,63448.0,63446.0,0.157612]
[1728876575061,0.004,63448.0,63442.0,0.16383902]
[1728876575277,0.157599,63453.0,63445.0,0.31523]
[1728876575499,0.157599,63453.0,63442.0,0.16383902]
[1728876575500,0.157606,63450.0,63446.0,0.157614]
[1728876575721,0.001,63448.0,63446.0,0.157614]
[1728876575937,0.16122401,63453.0,63447.0,0.157611]
[1728876576192,0.02469943,63450.0,63442.0,0.32146102]
[1728876576409,0.157612,63447.0,63443.0,0.157619]
[1728876576649,0.001,63448.0,63444.0,0.157618]
[1728876576650,0.158609,63448.0,63444.0,0.157618]
[1728876576868,0.001,63448.0,63445.0,0.157614]
[1728876577089,0.157611,63447.0,63446.0,0.001]
[1728876577311,0.005,63448.0,63444.0,0.157618]
[1728876577558,0.158609,63448.0,63444.0,0.157618]
[1728876577780,0.001,63448.0,63443.0,0.315242]
[1728876577996,0.162611,63448.0,63444.0,0.001]
[1728876578219,0.005,63448.0,63444.0,0.316237]
[1728876578462,0.005,63448.0,63447.0,0.157611]
[1728876578702,0.005,63448.0,63447.0,0.53485501]
[1728876578889,0.23772356,63453.0,63449.0,0.346829]
[1728876579139,0.23772356,63453.0,63452.0,0.35805802]
[1728876579360,0.0246951,63460.0,63459.0,0.157582]
[1728876580473,0.0246951,63460.0,63458.0,0.189203]
[1728876580681,0.0246951,63460.0,63459.0,0.157582]
[1728876580948,0.07443541,63460.0,63459.0,0.001]
[1728876581167,0.1822741,63460.0,63459.0,0.001]
[1728876581394,0.1822741,63460.0,63452.0,0.011]
[1728876581395,0.157596,63453.0,63452.0,0.011]
[1728876581815,0.157595,63454.0,63449.0,0.157605]
[1728876582025,0.315183,63456.0,63449.0,0.157605]
[1728876582026,0.157599,63453.0,63449.0,0.157605]
[1728876582237,0.157593,63455.0,63450.0,0.157604]
[1728876582447,0.18229149,63453.0,63449.0,0.157606]
[1728876582875,0.02469449,63453.0,63448.0,0.315216]
[1728876583084,0.157592,63455.0,63449.0,0.315213]
[1728876583295,0.55289956,63457.0,63447.0,0.26073902]
[1728876583296,0.157597,63453.0,63448.0,0.157607]
[1728876583510,0.004,63454.0,63447.0,0.26073902]
[1728876583715,0.315176,63457.0,63449.0,0.315211]
[1728876583968,0.315165,63459.0,63451.0,0.16383902]
[1728876584199,0.004,63453.0,63451.0,0.16383902]
[1728876584648,0.315194,63453.0,63447.0,0.0969]
[1728876584864,0.23772356,63455.0,63447.0,0.0969]
[1728876584865,0.315184,63455.0,63447.0,0.0969]
[1728876585103,0.157596,63453.0,63449.0,0.158606]
[1728876585293,0.321184,63455.0,63449.0,0.001]
[1728876585729,0.315189,63454.0,63449.0,0.001]
[1728876585944,0.004,63457.0,63449.0,0.001]
[1728876585945,0.157601,63452.0,63449.0,0.001]
[1728876586185,0.157597,63453.0,63451.0,0.001]
[1728876586470,0.315185,63455.0,63447.0,0.0969]
[1728876586658,0.008,63453.0,63449.0,0.16383902]
[1728876586891,0.004,63453.0,63449.0,0.16383902]
[1728876587110,0.157599,63453.0,63449.0,0.16383902]
[1728876587332,0.157591,63456.0,63449.0,0.16383902]
[1728876587543,0.1616,63452.0,63449.0,0.16383902]
[1728876587770,0.157602,63451.0,63449.0,0.16383902]
[1728876587987,0.0246944,63453.0,63449.0,0.16383902]
[1728876588200,0.315199,63452.0,63449.0,0.16383902]
[1728876588427,0.0286944,63453.0,63452.0,0.157599]
[1728876589287,0.0286944,63453.0,63451.0,0.16383902]
[1728876589503,0.0286944,63453.0,63452.0,0.157599]
[1728876589761,0.0286944,63453.0,63447.0,0.26073902]
[1728876590198,0.3152,63452.0,63447.0,0.26073902]
[1728876590471,0.0286944,63453.0,63451.0,0.157599]
[1728876590687,0.0286944,63453.0,63451.0,0.16383902]
[1728876591132,0.157599,63452.0,63451.0,0.16383902]
[1728876591364,0.157599,63452.0,63447.0,0.0969]
[1728876591365,0.472802,63452.0,63447.0,0.26073902]
[1728876591598,0.13650107,63450.0,63447.0,0.26073902]
[1728876591821,0.160599,63452.0,63448.0,0.157609]
[1728876592037,0.157604,63450.0,63447.0,0.26073902]
[1728876592473,0.004,63452.0,63447.0,0.26073902]
[1728876592687,0.1616,63452.0,63448.0,0.157608]
[1728876592895,0.1646,63452.0,63448.0,0.157608]
[1728876593341,0.1576,63452.0,63448.0,0.157608]
[1728876593770,0.1616,63452.0,63448.0,0.157608]
[1728876593979,0.1616,63452.0,63447.0,0.26073902]
[1728876593980,0.004,63452.0,63447.0,0.26073902]
[1728876594286,0.315159,63460.0,63452.0,0.157598]
[1728876594531,0.39531456,63456.0,63452.0,0.157598]
[1728876594792,0.315159,63460.0,63452.0,0.157598]
[1728876595024,0.16122401,63460.0,63453.0,0.157596]
[1728876595253,0.157587,63457.0,63453.0,0.157596]
[1728876595732,0.157591,63456.0,63451.0,0.32143902]
[1728876595971,0.002,63452.0,63451.0,0.32143902]
[1728876596224,0.002,63452.0,63451.0,0.16383902]
[1728876596800,0.1596,63452.0,63447.0,0.26073902]
[1728876597025,0.002,63452.0,63448.0,0.315217]
[1728876597254,0.002,63452.0,63447.0,0.26073902]
[1728876597255,0.157599,63452.0,63447.0,0.26073902]
[1728876597767,0.157599,63452.0,63448.0,0.157607]
[1728876598468,0.158419,63453.0,63448.0,0.157607]
[1728876598716,0.1576,63452.0,63448.0,0.003]
[1728876598930,0.000821,63453.0,63450.0,0.157602]
[1728876599055,0.000821,63453.0,63452.0,0.157599]
[1728876599277,0.000821,63453.0,63447.0,0.26173902]
[1728876599496,0.000821,63453.0,63448.0,0.317217]
[1728876599702,0.000821,63453.0,63450.0,0.157604]
[1728876599912,0.000821,63453.0,63448.0,0.002]
[1728876600121,0.158419,63453.0,63449.0,0.157605]
[1728876600548,0.000821,63453.0,63448.0,0.003]
[1728876600759,0.000821,63453.0,63452.0,0.157599]
[1728876601186,0.000821,63453.0,63452.0,0.159599]
[1728876601616,0.000821,63453.0,63452.0,0.157599]
[1728876602528,0.000821,63453.0,63452.0,0.159599]
[1728876603415,0.000821,63453.0,63452.0,0.272219]
[1728876603651,0.000821,63453.0,63452.0,0.6793184]
[1728876603883,0.000821,63453.0,63452.0,0.53444301]
[1728876604332,0.000821,63453.0,63452.0,0.53744301]
[1728876604565,0.000821,63453.0,63452.0,0.53444301]
[1728876604785,0.000821,63453.0,63452.0,0.54802432]
[1728876604995,0.000821,63453.0,63452.0,0.55302432]
[1728876605432,0.158417,63453.0,63452.0,0.007]
[1728876605680,0.37815474,63453.0,63452.0,0.007]
[1728876605886,0.40585474,63453.0,63452.0,0.007]
[1728876606112,0.38987874,63453.0,63452.0,0.007]
[1728876606607,0.64894137,63453.0,63452.0,0.007]
[1728876606851,0.157626,63441.0,63440.0,0.23772356]
[1728876607082,0.55987603,63441.0,63440.0,0.23772356]
[1728876607298,0.34655001,63441.0,63440.0,0.23772356]
[1728876607520,0.157629,63440.0,63439.0,8.999626]
[1728876607734,0.31885301,63440.0,63439.0,8.999626]
[1728876609058,0.31885301,63440.0,63439.0,8.998642]
[1728876609279,0.36606558,63440.0,63439.0,8.998642]
[1728876609549,0.31885301,63440.0,63439.0,8.998642]
[1728876609802,0.34355629,63440.0,63439.0,8.998642]
[1728876610015,0.02470328,63440.0,63439.0,8.998642]
[1728876610237,0.18233228,63440.0,63439.0,8.998642]
[1728876610473,0.34355629,63440.0,63439.0,8.998642]
[1728876610907,0.35655629,63440.0,63439.0,8.999642]
[1728876611338,0.34355629,63440.0,63439.0,8.998642]
[1728876611559,0.35655629,63440.0,63439.0,8.999642]
[1728876612432,0.35055629,63440.0,63439.0,8.999642]
[1728876612640,0.35855629,63440.0,63439.0,9.000642]
[1728876612852,0.35155629,63440.0,63439.0,8.999642]
[1728876613063,0.32685301,63440.0,63439.0,8.999642]
[1728876613282,0.33385301,63440.0,63439.0,9.000642]
[1728876613515,0.53142038,63440.0,63439.0,9.000642]
[1728876613742,0.53342038,63440.0,63439.0,9.000642]
[1728876613966,0.55501346,63440.0,63439.0,9.000642]
[1728876614183,0.57860654,63440.0,63439.0,9.000642]
[1728876614391,0.4518069,63440.0,63439.0,9.000642]
[1728876614835,0.4538069,63440.0,63439.0,9.000642]
[1728876615078,0.32085301,63440.0,63439.0,8.998642]
[1728876615300,0.33185301,63440.0,63439.0,9.000642]
[1728876615513,0.47418036,63440.0,63439.0,9.000642]
[1728876616017,0.46018036,63440.0,63439.0,8.999642]
[1728876616251,0.49888515,63440.0,63439.0,9.000642]
[1728876616473,0.61676519,63440.0,63439.0,9.000642]
[1728876616893,0.49888515,63440.0,63439.0,9.000642]
[1728876617110,0.59316627,63440.0,63439.0,9.002602]
[1728876617346,0.61676519,63440.0,63439.0,9.002602]
[1728876617594,0.6167084,63440.0,63439.0,9.002602]
[1728876617800,0.49888515,63440.0,63439.0,9.002602]
[1728876618048,0.99888515,63440.0,63439.0,9.002602]
[1728876618514,1.11670235,63440.0,63439.0,9.002602]
[1728876619207,0.99888515,63440.0,63439.0,9.002602]
[1728876619418,1.11667101,63440.0,63439.0,9.002602]
[1728876620297,0.99888515,63440.0,63439.0,9.002602]
[1728876620507,0.8705578,63440.0,63439.0,9.002602]
[1728876620713,0.94119858,63440.0,63439.0,9.002602]
[1728876621202,0.8705578,63440.0,63439.0,9.002602]
[1728876621445,0.9705578,63440.0,63439.0,9.002602]
[1728876621655,1.13192751,63440.0,63439.0,9.002602]
[1728876622303,1.14562751,63440.0,63439.0,8.99257155]
[1728876622539,1.14562751,63440.0,63439.0,8.99157155]
[1728876622774,0.9872578,63440.0,63439.0,8.99257155]
[1728876622997,1.0012578,63440.0,63439.0,8.99357155]
[1728876623201,0.98555301,63440.0,63439.0,8.96104555]
[1728876623414,1.11922272,63440.0,63439.0,8.48346342]
[1728876623629,1.11922272,63440.0,63439.0,8.45193742]
[1728876624122,1.09622272,63440.0,63439.0,8.45193742]
[1728876624336,1.03846232,63440.0,63439.0,8.45093742]
[1728876624557,0.93485301,63440.0,63439.0,8.45093742]
[1728876624780,1.04291041,63440.0,63439.0,8.45093742]
[1728876624987,0.93485301,63440.0,63439.0,8.45093742]
[1728876625438,0.94885301,63440.0,63439.0,8.41043583]
[1728876625661,1.09622272,63440.0,63439.0,8.41043583]
[1728876626096,1.12093237,63440.0,63439.0,8.41043583]
[1728876627261,1.14393237,63440.0,63439.0,8.41043583]
[1728876627486,1.15793237,63440.0,63439.0,8.41043583]
[1728876627718,1.20543466,63440.0,63439.0,8.41043583]
[1728876627917,1.12093237,63440.0,63439.0,8.41043583]
[1728876628134,1.20543466,63440.0,63439.0,8.41043583]
[1728876628545,1.13493237,63440.0,63439.0,8.41043583]
[1728876628750,1.22843466,63440.0,63439.0,8.41043583]
[1728876628982,1.15793237,63440.0,63439.0,8.41043583]
[1728876629185,1.17444221,63440.0,63439.0,8.41043583]
[1728876629614,1.22142602,63440.0,63439.0,7.18411794]
[1728876629828,1.18444221,63440.0,63439.0,7.15575259]
[1728876630469,1.27839891,63440.0,63439.0,7.06117459]
[1728876630679,1.17044221,63440.0,63439.0,6.99812259]
[1728876630908,1.18444221,63440.0,63439.0,6.99812259]
[1728876631339,1.17044221,63440.0,63439.0,6.99812259]
[1728876631613,1.17044221,63440.0,63439.0,6.87201859]
[1728876631614,1.22689369,63440.0,63439.0,6.87201859]
[1728876631806,1.25489369,63440.0,63439.0,6.84049259]
[1728876632031,1.33754221,63440.0,63439.0,6.84049259]
[1728876632235,1.18444221,63440.0,63439.0,6.84049259]
[1728876632450,1.17944221,63440.0,63439.0,6.84049259]
[1728876632653,1.0180725,63440.0,63439.0,6.84049259]
[1728876632883,0.96536285,63440.0,63439.0,6.84049259]
[1728876633223,0.86536285,63440.0,63439.0,6.84049259]
[1728876633649,0.86336285,63440.0,63439.0,6.84049259]
[1728876633887,0.84685301,63440.0,63439.0,6.84049259]
[1728876634086,1.00822272,63440.0,63439.0,6.85127339]
[1728876634293,0.99622272,63440.0,63439.0,6.85127339]
[1728876634510,0.99622272,63440.0,63439.0,6.84808787]
[1728876634511,1.01022272,63440.0,63439.0,6.84808787]
[1728876634736,1.01022272,63440.0,63439.0,6.85181174]
[1728876634956,0.99622272,63440.0,63439.0,6.85181174]
[1728876635178,0.98222272,63440.0,63439.0,6.85181174]
[1728876635414,1.01022272,63440.0,63439.0,6.85181174]
[1728876636223,0.99622272,63440.0,63439.0,6.85181174]
[1728876636752,1.01022272,63440.0,63439.0,6.85181174]
[1728876636959,0.99622272,63440.0,63439.0,6.85181174]
[1728876637163,1.02092951,63440.0,63439.0,6.85181174]
[1728876637393,1.12092951,63440.0,63439.0,6.85181174]
[1728876638302,1.13492951,63440.0,63439.0,6.85181174]
[1728876639425,1.19813651,63440.0,63439.0,6.85181174]
[1728876640076,1.22113651,63440.0,63439.0,6.32903209]
[1728876640287,1.26809348,63440.0,63439.0,6.32903209]
[1728876640513,1.22113651,63440.0,63439.0,6.32527583]
[1728876640937,1.29157196,63440.0,63439.0,6.26222383]
[1728876641147,1.21913651,63440.0,63439.0,6.16764583]
[1728876641369,1.22113651,63440.0,63439.0,6.07306783]
[1728876641584,1.20713651,63440.0,63439.0,6.01001583]
[1728876641832,1.21213651,63440.0,63439.0,6.01379727]
[1728876642047,1.19813651,63440.0,63439.0,6.01379727]
[1728876642258,1.19813651,63440.0,63439.0,6.01001583]
[1728876642462,1.21213651,63440.0,63439.0,5.85238583]
[1728876642674,1.21213651,63440.0,63439.0,5.36113218]
[1728876643143,1.20142972,63440.0,63439.0,5.3419743]
[1728876643355,1.20142972,63440.0,63439.0,5.2789223]
[1728876643562,1.21542972,63440.0,63439.0,5.1843443]
[1728876643990,1.20142972,63440.0,63439.0,5.1843443]
[1728876644457,1.20142972,63440.0,63439.0,5.0582403]
[1728876644458,1.21542972,63440.0,63439.0,5.0582403]
[1728876644652,1.21542972,63440.0,63439.0,5.0267143]
[1728876645080,1.21542972,63440.0,63439.0,5.01529956]
[1728876645513,1.21542972,63440.0,63439.0,4.83671784]
[1728876645765,1.22042972,63440.0,63439.0,4.11975385]
[1728876646003,1.2451415,63440.0,63439.0,4.11975385]
[1728876646214,1.2451415,63440.0,63439.0,3.88743379]
[1728876646427,1.2451415,63440.0,63439.0,3.82402222]
[1728876646851,1.2311415,63440.0,63439.0,3.69791822]
[1728876647083,1.2451415,63440.0,63439.0,3.381829]
[1728876647299,1.2451415,63440.0,63439.0,3.0657298]
[1728876647505,1.2311415,63440.0,63439.0,1.80290528]
[1728876647714,1.2311415,63440.0,63439.0,1.48680006]
[1728876647944,1.2459625,63440.0,63439.0,0.85460464]
[1728876648154,1.2459625,63440.0,63439.0,0.53850044]
[1728876648366,1.2319625,63440.0,63439.0,0.0813858]
[1728876648596,0.292641,63435.0,63434.0,0.003602]
[1728876648807,0.77907374,63435.0,63434.0,0.003602]
[1728876649510,0.61533404,63429.0,63428.0,0.0009819]
[1728876649764,0.89425367,63429.0,63428.0,9e-07]
[1728876649996,0.292659,63428.0,63427.0,1e-06]
[1728876650247,0.57158055,63428.0,63427.0,1e-06]
[1728876650498,0.45388301,63428.0,63427.0,1e-06]
[1728876650739,0.282683,63418.0,63389.0,0.23772356]
[1728876650986,0.259701,63411.0,63389.0,0.23772356]
[1728876651218,0.26122401,63411.0,63410.0,0.40156258]
[1728876651452,0.44364279,63411.0,63410.0,0.1716]
[1728876651709,0.78594179,63411.0,63410.0,0.1716]
[1728876651936,1.08531417,63411.0,63410.0,0.1716]
[1728876652167,0.92761317,63411.0,63410.0,0.1716]
[1728876653109,0.77522401,63411.0,63410.0,0.1716]
[1728876653787,0.91892501,63411.0,63410.0,0.1716]
[1728876654438,0.92092501,63411.0,63410.0,0.1716]
[1728876654685,0.91892501,63411.0,63410.0,0.1716]
[1728876655102,0.92092501,63411.0,63410.0,0.17174]
[1728876655317,1.09429472,63411.0,63410.0,0.17174]
[1728876655533,1.10829472,63411.0,63410.0,0.17174]
[1728876655742,1.09629472,63411.0,63410.0,0.17174]
[1728876655993,1.13501166,63411.0,63410.0,0.17174]
[1728876656214,1.12101166,63411.0,63410.0,0.17174]
[1728876656630,1.13101166,63411.0,63410.0,0.17174]
[1728876656848,0.71194095,63411.0,63410.0,0.17174]
[1728876657069,0.53384095,63411.0,63410.0,0.17174]
[1728876657309,0.53384095,63411.0,63410.0,0.329443]
[1728876658165,0.43384095,63411.0,63410.0,0.329443]
[1728876658401,0.43384095,63411.0,63410.0,0.17174]
[1728876658879,0.42184095,63411.0,63410.0,0.17174]
[1728876659107,0.52471595,63411.0,63410.0,0.17174]
[1728876659317,0.53471595,63411.0,63410.0,0.17174]
[1728876661187,0.53471595,63411.0,63410.0,0.173382]
[1728876661842,0.24500838,63411.0,63410.0,0.336085]
[1728876662075,0.23772356,63423.0,63421.0,0.320352]
[1728876662344,0.23772356,63423.0,63422.0,0.32151202]
[1728876662811,0.23772356,63430.0,63423.0,0.31534]
[1728876663045,0.23772356,63430.0,63429.0,0.16383902]
[1728876663255,0.73772356,63430.0,63424.0,0.1012]
[1728876663475,0.73772356,63430.0,63415.0,0.1012]
[1728876663476,0.002,63423.0,63415.0,0.1012]
[1728876663700,0.157695,63414.0,63410.0,0.001642]
[1728876663905,0.1,63411.0,63410.0,0.001642]
[1728876665212,0.1,63412.0,63410.0,0.001642]
[1728876665444,0.1,63411.0,63410.0,0.001782]
[1728876665657,0.48158581,63411.0,63410.0,0.002782]
[1728876666104,0.48158581,63411.0,63410.0,0.001782]
[1728876666105,0.47958581,63411.0,63410.0,0.001782]
[1728876666996,0.47958581,63411.0,63410.0,0.002782]
[1728876666997,0.55033106,63411.0,63410.0,0.002782]
[1728876667248,0.47958581,63411.0,63410.0,0.002782]
[1728876667931,0.47958581,63411.0,63410.0,0.001782]
[1728876668147,0.48658581,63411.0,63410.0,0.002782]
[1728876668393,0.48358581,63411.0,63410.0,0.002782]
[1728876668646,0.48358581,63411.0,63410.0,0.001782]
[1728876668647,0.56978581,63411.0,63410.0,0.001782]
[1728876668875,0.55778581,63411.0,63410.0,0.001782]
[1728876669096,0.57078581,63411.0,63410.0,0.002782]
[1728876669329,0.58478581,63411.0,63410.0,0.002782]
[1728876669544,0.55778581,63411.0,63410.0,0.001782]
[1728876670038,0.58578581,63411.0,63410.0,0.002782]
[1728876671096,0.57178581,63411.0,63410.0,0.001782]
[1728876671311,0.159753,63390.0,63386.0,0.00164]
[1728876671524,0.41897701,63390.0,63386.0,0.00164]
[1728876671741,0.157761,63387.0,63386.0,0.00164]
[1728876671949,0.31898501,63387.0,63386.0,0.00164]
[1728876672414,0.36618528,63387.0,63386.0,0.00164]
[1728876673044,0.38018528,63387.0,63386.0,0.00164]
[1728876673259,0.44698501,63387.0,63386.0,0.00164]
[1728876673488,0.51778542,63387.0,63386.0,0.00164]
[1728876673734,0.51776144,63387.0,63386.0,0.00164]
[1728876673945,0.61035472,63387.0,63386.0,0.00164]
[1728876674788,0.59435472,63387.0,63386.0,0.00164]
[1728876675027,0.67469058,63387.0,63386.0,0.00164]
[1728876675258,0.59435472,63387.0,63386.0,0.00164]
[1728876675461,0.67908299,63387.0,63386.0,0.00164]
[1728876675674,0.66508299,63387.0,63386.0,0.00164]
[1728876675895,0.17522401,63387.0,63386.0,0.00164]
[1728876676117,0.22794858,63387.0,63386.0,0.00164]
[1728876676789,0.19994858,63387.0,63386.0,0.00164]
[1728876676998,0.19994858,63387.0,63386.0,0.01206904]
[1728876677224,0.18594858,63387.0,63386.0,0.00164]
[1728876677431,0.30186894,63387.0,63386.0,0.00164]
[1728876677665,0.31586894,63387.0,63386.0,0.00164]
[1728876678096,0.30186894,63387.0,63386.0,0.00164]
[1728876678524,0.30886894,63387.0,63386.0,0.00164]
[1728876678735,0.32086894,63387.0,63386.0,0.00164]
[1728876679168,0.30886894,63387.0,63386.0,0.00164]
[1728876679379,0.31486894,63387.0,63386.0,0.00164]
[1728876680007,0.47262994,63387.0,63386.0,0.00164]
[1728876680491,0.57262994,63387.0,63386.0,0.00164]
[1728876681122,0.41486894,63387.0,63386.0,0.00164]
[1728876681332,0.57262994,63387.0,63386.0,0.00164]
[1728876681979,0.57462994,63387.0,63386.0,0.00164]
[1728876682617,0.61975327,63387.0,63386.0,0.00164]
[1728876682889,0.1,63382.0,63379.0,0.001418]
[1728876683109,0.16122401,63381.0,63379.0,0.001418]
[1728876683316,0.157778,63380.0,63379.0,0.001418]
[1728876683525,0.31900201,63380.0,63379.0,0.001418]
[1728876683955,0.42100201,63380.0,63379.0,0.001418]
[1728876684381,0.51002801,63380.0,63379.0,0.001418]
[1728876684596,0.56715613,63380.0,63379.0,0.001418]
[1728876684817,0.70055098,63380.0,63379.0,0.001418]
[1728876685469,0.64342286,63380.0,63379.0,0.001418]
[1728876685878,0.72811821,63380.0,63379.0,0.001418]
[1728876686095,0.7528478,63380.0,63379.0,0.001418]
[1728876686312,0.5487576,63380.0,63379.0,0.001418]
[1728876686759,0.59586806,63380.0,63379.0,0.001418]
[1728876686976,0.60986806,63380.0,63379.0,0.001418]
[1728876687199,0.59586806,63380.0,63379.0,0.001418]
[1728876687419,0.5487576,63380.0,63379.0,0.001418]
[1728876687636,0.72412731,63380.0,63379.0,0.001418]
[1728876687882,0.77123777,63380.0,63379.0,0.001418]
[1728876688139,0.86023777,63380.0,63379.0,0.001418]
[1728876688358,0.93088604,63380.0,63379.0,0.001418]
[1728876688770,0.159788,63376.0,63375.0,0.00121]
[1728876688984,0.46609937,63376.0,63375.0,0.00121]
[1728876689200,0.41901201,63376.0,63375.0,0.00121]
[1728876690096,0.43301201,63376.0,63375.0,0.00121]
[1728876690327,0.44901201,63376.0,63375.0,0.00121]
[1728876691190,0.44701201,63376.0,63375.0,0.00121]
[1728876691824,0.44901201,63376.0,63375.0,0.00121]
[1728876692026,0.57732544,63376.0,63375.0,0.00121]
[1728876696224,0.6020572,63376.0,63375.0,0.00121]
[1728876696493,0.31395577,63376.0,63375.0,0.00121]
[1728876696761,0.47174377,63376.0,63375.0,0.00121]
[1728876697045,0.31395577,63376.0,63375.0,0.00121]
[1728876697294,0.05273176,63376.0,63375.0,0.40139152]
[1728876697799,0.05273176,63376.0,63375.0,0.01197265]
[1728876698299,0.03873176,63376.0,63375.0,0.01197265]
[1728876698533,0.06937729,63376.0,63375.0,0.01197265]
[1728876699028,0.05537729,63376.0,63375.0,0.01197265]
[1728876699284,0.02773176,63376.0,63375.0,0.01197265]
[1728876699532,0.03173176,63376.0,63375.0,0.01197265]
[1728876700294,0.19295577,63376.0,63375.0,0.01197265]
[1728876700790,0.35074377,63376.0,63375.0,0.00121]
[1728876701032,0.5727034,63376.0,63375.0,0.00121]
[1728876701279,0.5747034,63376.0,63375.0,0.00121]
[1728876702004,0.5717034,63376.0,63375.0,0.00121]
[1728876702243,0.5817034,63376.0,63375.0,0.00121]
[1728876702468,0.5957034,63376.0,63375.0,0.00121]
[1728876702937,0.5817034,63376.0,63375.0,0.00121]
[1728876703197,0.55697164,63376.0,63375.0,0.00121]
[1728876703461,0.57097164,63376.0,63375.0,0.00121]
[1728876705519,0.56897164,63376.0,63375.0,0.00121]
[1728876705844,0.57097164,63376.0,63375.0,0.00121]
[1728876706290,0.59570357,63376.0,63375.0,0.00121]
[1728876707151,0.47174394,63376.0,63375.0,0.00121]
[1728876707612,0.47374394,63376.0,63375.0,0.00121]
[1728876707821,0.47174394,63376.0,63375.0,0.00121]
[1728876709119,0.31395594,63376.0,63375.0,0.00121]
[1728876709571,0.47174394,63376.0,63375.0,0.00121]
[1728876709799,0.31395594,63376.0,63375.0,0.00121]
[1728876710015,0.05273193,63376.0,63375.0,0.2413]
[1728876710248,0.03873193,63376.0,63375.0,0.4266]
[1728876710484,0.03873193,63376.0,63375.0,0.43731438]
[1728876710923,0.02473193,63376.0,63375.0,0.43731438]
[1728876711563,0.05073193,63376.0,63375.0,0.43731438]
[1728876711984,0.02473193,63376.0,63375.0,0.27952438]
[1728876712191,0.02473193,63376.0,63375.0,0.43731438]
[1728876712397,0.03273193,63376.0,63375.0,0.43731438]
[1728876712835,0.03273193,63376.0,63375.0,0.27952438]
[1728876713073,0.008,63376.0,63375.0,0.27952438]
[1728876713531,0.008,63376.0,63375.0,0.27452438]
[1728876713763,0.008,63376.0,63375.0,0.01192438]
[1728876714204,0.008,63376.0,63375.0,0.00121]
[1728876714422,0.16922401,63376.0,63375.0,0.01184775]
[1728876714638,0.39934567,63376.0,63375.0,0.00121]
[1728876715103,0.24155767,63376.0,63375.0,0.00121]
[1728876715539,0.74155767,63376.0,63375.0,0.00121]
[1728876715744,0.89934567,63376.0,63375.0,0.00121]
[1728876716184,0.92407324,63376.0,63375.0,0.00121]
[1728876716654,0.76628524,63376.0,63375.0,0.00121]
[1728876716870,0.92407324,63376.0,63375.0,0.00121]
[1728876717068,0.85173958,63376.0,63375.0,0.00121]
[1728876718408,0.53272757,63376.0,63375.0,0.00121]
[1728876719098,0.53272757,63376.0,63375.0,0.01186854]
[1728876719312,0.53272757,63376.0,63375.0,0.00121]
[1728876719754,0.53272757,63376.0,63375.0,0.01186854]
[1728876721826,0.53272757,63376.0,63375.0,0.17465854]
[1728876722723,0.52872757,63376.0,63375.0,0.17465854]
[1728876722949,0.53272757,63376.0,63375.0,0.17465854]
[1728876723166,0.504,63376.0,63375.0,0.17465854]
[1728876724100,0.504,63376.0,63375.0,0.01186854]
[1728876724321,0.66522401,63376.0,63375.0,0.01186854]
[1728876724540,0.81901201,63376.0,63375.0,0.01386854]
[1728876724757,0.82001201,63376.0,63375.0,0.00321]
[1728876724998,0.82001201,63376.0,63375.0,0.00121]
[1728876725223,0.98238172,63376.0,63375.0,0.00321]
[1728876725444,1.05225282,63376.0,63375.0,0.00321]
[1728876725675,1.08038172,63376.0,63375.0,0.00121]
[1728876725893,1.08038172,63376.0,63375.0,0.00221]
[1728876726106,1.10511155,63376.0,63375.0,0.00221]
[1728876726321,1.10511155,63376.0,63375.0,0.00121]
[1728876726795,1.24885376,63376.0,63375.0,0.00121]
[1728876727026,1.10711155,63376.0,63375.0,0.00121]
[1728876727240,1.10511155,63376.0,63375.0,0.00121]
[1728876727452,1.10711155,63376.0,63375.0,0.00121]
[1728876727695,1.11111155,63376.0,63375.0,0.00121]
[1728876727919,1.12011155,63376.0,63375.0,0.00121]
[1728876728162,1.44882087,63376.0,63375.0,0.00121]
[1728876728380,1.4361631,63376.0,63375.0,0.00121]